bitfinex/quotes_SOLUSD_20240925
["timestamp","ask_amount","ask_price","bid_price","bid_amount"]
[1727251304345,20.0,150.06,149.97,6.4049]
[1727251304521,6.6653,150.03,149.97,6.4049]
[1727251304707,6.6653,150.03,149.98,1.3331836]
[1727251305421,6.6653,150.03,149.97,6.4049]
[1727251311209,0.42511646,150.05,149.97,6.4049]
[1727251311533,6.6659,150.02,149.97,6.4049]
[1727251312432,6.6659,150.02,149.98,1.33328749]
[1727251312607,20.0,150.06,150.0,6.0267]
[1727251312812,6.6637,150.07,150.02,15.4637]
[1727251313113,6.664,150.06,150.03,1.33288406]
[1727251313728,6.6636,150.07,150.03,1.33288406]
[1727251314113,6.6632,150.08,150.04,6.0267]
[1727251314313,6.6632,150.08,150.04,7.35945091]
[1727251315031,6.6632,150.08,150.04,6.0267]
[1727251315819,6.6627,150.09,150.05,1.33275232]
[1727251316419,6.6631,150.08,150.05,1.33275232]
[1727251316813,6.6627,150.09,150.05,1.33275232]
[1727251318320,6.6627,150.09,150.04,6.0267]
[1727251320820,6.6632,150.08,150.04,6.0267]
[1727251325231,6.664,150.06,150.04,6.0267]
[1727251326238,6.6636,150.07,150.04,6.0267]
[1727251326552,6.6635,150.08,150.04,6.0267]
[1727251326917,20.0,150.1,150.04,6.0267]
[1727251327115,6.6636,150.07,150.04,6.0267]
[1727251337744,20.0,150.1,150.04,6.0267]
[1727251337941,6.9075402,150.11,150.06,16.6446]
[1727251338122,6.9075402,150.11,150.07,1.33248546]
[1727251338648,6.6623,150.1,150.06,16.6446]
[1727251339728,6.6627,150.09,150.06,16.6446]
[1727251347334,6.6635,150.07,150.06,16.6446]
[1727251347963,6.6632,150.08,150.06,16.6446]
[1727251349928,6.6626,150.09,150.06,16.6446]
[1727251355631,0.2458402,150.11,150.08,6.1468]
[1727251359560,0.2458402,150.11,150.09,16.4784]
[1727251377956,6.6627,150.09,150.05,15.034]
[1727251378348,7.08821646,150.08,150.05,15.034]
[1727251378546,6.6631,150.08,150.05,15.034]
[1727251386974,6.6626,150.1,150.05,15.034]
[1727251387157,6.6626,150.1,150.05,16.36676028]
[1727251388862,6.6626,150.1,150.05,15.034]
[1727251389378,0.2458402,150.11,150.05,15.034]
[1727251389561,6.6628,150.09,150.05,15.034]
[1727251397580,6.6623,150.1,150.06,1.33275991]
[1727251397776,6.9078402,150.11,150.06,1.33275991]
[1727251398282,0.2458402,150.11,150.07,6.0126]
[1727251398478,0.2458402,150.11,150.08,1.3324292]
[1727251400782,0.2458402,150.11,150.07,6.0126]
[1727251401473,0.2458402,150.11,150.08,1.3324313]
[1727251403967,0.2458402,150.11,150.07,6.0126]
[1727251405479,0.67095666,150.11,150.07,6.0126]
[1727251408892,0.2458402,150.11,150.07,6.0126]
[1727251410172,7.33275666,150.11,150.07,6.0126]
[1727251410495,6.6622,150.1,150.07,6.0126]
[1727251413269,6.9076402,150.11,150.07,6.0126]
[1727251429716,6.6623,150.1,150.07,6.0126]
[1727251430012,6.6627,150.09,150.07,6.0126]
[1727251431310,6.6623,150.1,150.07,6.0126]
[1727251434615,6.6626,150.09,150.07,6.0126]
[1727251434901,7.08821646,150.08,150.05,15.034]
[1727251435110,6.6631,150.08,150.05,15.034]
[1727251442823,0.2458402,150.11,150.06,1.33283973]
[1727251443000,0.2458402,150.11,150.06,7.69023973]
[1727251444209,0.2458402,150.11,150.07,23.776884]
[1727251444417,0.2458402,150.11,150.1,40.080284]
[1727251444695,0.2458402,150.15,150.11,23.776884]
[1727251444896,0.2458402,150.15,150.12,1.33197804]
[1727251445716,0.2458402,150.15,150.1,16.3034]
[1727251445918,0.2458402,150.15,150.11,25.10890048]
[1727251446517,0.2458402,150.15,150.12,6.2945]
[1727251446705,0.2458402,150.15,150.13,1.33185722]
[1727251449219,0.2458402,150.15,150.12,6.2945]
[1727251450406,0.2458402,150.15,150.13,1.331978]
[1727251452605,0.2458402,150.15,150.12,6.2945]
[1727251452920,0.2458402,150.15,150.13,1.33197982]
[1727251456600,0.2458402,150.15,150.12,6.2945]
[1727251458736,0.2458402,150.15,150.12,6.2945]
[1727251460223,0.2458402,150.15,150.1,12.72308894]
[1727251462719,0.2458402,150.15,150.11,1.33198243]
[1727251463123,0.2458402,150.15,150.12,6.3588]
[1727251463325,0.2458402,150.15,150.13,1.33180421]
[1727251466749,0.2458402,150.15,150.13,10.93392939]
[1727251467032,0.2458402,150.15,150.14,16.4861]
[1727251470613,0.2458402,150.15,150.14,17.8176532]
[1727251471131,0.2458402,150.15,150.14,16.4861]
[1727251472242,0.2458402,150.15,150.14,17.81768173]
[1727251472541,0.2458402,150.15,150.14,16.4861]
[1727251476032,0.2458402,150.15,150.14,17.81765111]
[1727251476620,0.2458402,150.15,150.14,16.4861]
[1727251478240,0.2458402,150.15,150.14,40.262984]
[1727251478538,0.3174658,150.21,150.15,50.334684]
[1727251478845,0.3174658,150.21,150.19,9.60212518]
[1727251479136,0.3174658,150.21,150.2,1.33107782]
[1727251479322,0.3174658,150.21,150.19,9.60212518]
[1727251479529,0.3174658,150.21,150.2,46.308784]
[1727251480741,0.3174658,150.3,150.2,46.308784]
[1727251480742,0.3174658,150.3,150.23,20.0]
[1727251480920,0.3174658,150.3,150.23,54.70968025]
[1727251481421,0.3174658,150.3,150.25,50.334684]
[1727251481720,0.3174658,150.3,150.28,9.60212518]
[1727251482341,0.3174658,150.3,150.29,1.33047784]
[1727251483135,0.1058598,150.32,150.29,1.33047784]
[1727251483344,0.378437,150.31,150.3,9.60212518]
[1727251485338,0.378437,150.31,150.28,9.60212518]
[1727251486133,0.378437,150.31,150.25,50.334684]
[1727251486447,0.378437,150.31,150.28,9.60212518]
[1727251487226,0.378437,150.31,150.3,9.60212518]
[1727251487968,0.378437,150.31,150.3,25.57622518]
[1727251488363,0.378437,150.31,150.3,15.9741]
[1727251490550,0.378437,150.31,150.25,50.334684]
[1727251490863,0.378437,150.31,150.26,15.9741]
[1727251492151,0.378437,150.31,150.26,25.57622518]
[1727251496069,0.378437,150.31,150.27,1.33039026]
[1727251497140,0.378437,150.31,150.26,15.9741]
[1727251498742,0.378437,150.31,150.27,1.33033964]
[1727251499247,0.378437,150.31,150.26,15.9741]
[1727251501867,0.378437,150.31,150.27,1.33038463]
[1727251502743,0.378437,150.31,150.26,15.9741]
[1727251503368,0.378437,150.31,150.27,1.33034066]
[1727251504353,0.378437,150.31,150.26,15.9741]
[1727251505949,0.378437,150.31,150.27,1.33034586]
[1727251507554,0.378437,150.31,150.26,15.9741]
[1727251508378,0.378437,150.31,150.27,1.33038737]
[1727251509572,0.378437,150.31,150.27,10.93251255]
[1727251509862,0.378437,150.31,150.3,23.776884]
[1727251510367,0.378437,150.31,150.3,43.776884]
[1727251511650,0.378437,150.31,150.29,43.776884]
[1727251511983,0.378437,150.31,150.3,1.3300488]
[1727251512849,0.378437,150.31,150.29,43.776884]
[1727251513162,0.378437,150.31,150.3,1.33008339]
[1727251513563,0.378437,150.31,150.3,53.37900918]
[1727251514244,0.378437,150.31,150.3,54.70886057]
[1727251515674,0.378437,150.31,150.3,76.35196057]
[1727251518363,0.378437,150.31,150.3,75.02210918]
[1727251518581,0.378437,150.31,150.3,76.35192575]
[1727251519667,0.378437,150.31,150.3,76.35191263]
[1727251520067,0.378437,150.31,150.3,75.02210918]
[1727251520454,0.378437,150.31,150.3,76.3519088]
[1727251521170,0.1058598,150.32,150.31,93.776884]
[1727251521351,0.2722342,150.36,150.31,95.10649724]
[1727251521558,0.2722342,150.36,150.35,9.60212518]
[1727251521750,0.2722342,150.36,150.35,34.70849123]
[1727251522170,0.2722342,150.36,150.35,43.776884]
[1727251522377,0.2722342,150.36,150.35,20.0]
[1727251522558,0.2722342,150.36,150.35,21.32954927]
[1727251523368,0.2722342,150.36,150.33,23.776884]
[1727251523571,0.2722342,150.36,150.34,20.0]
[1727251523763,0.2722342,150.36,150.32,29.60212518]
[1727251525291,0.2722342,150.36,150.34,9.60212518]
[1727251525459,0.2722342,150.36,150.35,25.10650167]
[1727251526169,0.2722342,150.36,150.35,23.776884]
[1727251526587,0.2722342,150.36,150.35,25.10647141]
[1727251527174,0.2722342,150.36,150.35,43.776884]
[1727251527672,0.2722342,150.36,150.35,45.10641719]
[1727251527855,0.2722342,150.36,150.35,43.776884]
[1727251529572,0.2722342,150.36,150.35,45.10633776]
[1727251530451,0.2722342,150.36,150.35,43.776884]
[1727251530757,0.2722342,150.36,150.35,33.37900918]
[1727251530956,0.2722342,150.36,150.35,53.37900918]
[1727251534396,0.2722342,150.36,150.35,69.75068646]
[1727251534681,0.2722342,150.36,150.35,76.32958646]
[1727251534877,0.0716256,150.39,150.36,20.0]
[1727251535082,0.0716256,150.39,150.38,20.0]
[1727251535258,0.0716256,150.39,150.36,1.32944239]
[1727251535766,0.0716256,150.39,150.36,21.32944239]
[1727251536662,0.0716256,150.39,150.37,23.776884]
[1727251537007,0.0716256,150.39,150.38,20.0]
[1727251537681,0.0716256,150.39,150.36,45.10636501]
[1727251537994,0.0716256,150.39,150.36,43.776884]
[1727251538284,0.0716256,150.39,150.37,1.32948623]
[1727251538579,0.0716256,150.39,150.36,43.776884]
[1727251539585,0.0716256,150.39,150.37,1.32949373]
[1727251541285,0.0716256,150.39,150.36,43.776884]
[1727251541473,0.0716256,150.39,150.37,1.32948565]
[1727251542809,0.0716256,150.39,150.36,43.776884]
[1727251542810,0.0716256,150.39,150.38,43.776884]
[1727251543163,0.0716256,150.39,150.38,45.10620538]
[1727251543574,0.0716256,150.39,150.38,43.776884]
[1727251543890,0.3530564,150.4,150.39,20.0]
[1727251545274,0.3530564,150.4,150.37,20.0]
[1727251546080,0.3530564,150.4,150.39,20.0]
[1727251547181,0.3530564,150.4,150.38,23.776884]
[1727251547391,0.3530564,150.4,150.39,20.0]
[1727251548184,0.3530564,150.4,150.38,43.776884]
[1727251548582,0.3530564,150.4,150.37,20.0]
[1727251548780,0.3530564,150.4,150.36,20.0]
[1727251549173,0.3530564,150.4,150.34,16.3777781]
[1727251549778,0.3530564,150.4,150.33,6.95186758]
[1727251550901,7.0020564,150.4,150.33,6.95186758]
[1727251551079,7.0020564,150.4,150.34,1.32993419]
[1727251551474,6.6493,150.39,150.33,6.95186758]
[1727251551675,6.6493,150.39,150.34,1.32993737]
[1727251551893,6.6493,150.39,150.33,6.95186758]
[1727251553575,6.6493,150.39,150.34,1.33004406]
[1727251554097,7.0020564,150.4,150.34,1.33004406]
[1727251555878,0.3530564,150.4,150.34,1.33004406]
[1727251556201,6.6494,150.39,150.33,6.95186758]
[1727251558089,7.07521646,150.38,150.3,20.0]
[1727251558279,7.07521646,150.38,150.31,6.95418159]
[1727251558687,13.2999,150.38,150.31,6.95418159]
[1727251559103,6.6501,150.38,150.32,1.33009141]
[1727251559682,6.6512,150.35,150.31,6.95418159]
[1727251559982,6.6512,150.35,150.27,15.9889]
[1727251560188,6.6512,150.35,150.27,22.94508319]
[1727251561171,6.6512,150.35,150.28,20.0]
[1727251563889,6.6507,150.36,150.29,1.33034159]
[1727251564078,6.6415,150.37,150.29,1.33034159]
[1727251564291,6.6415,150.37,150.29,23.776884]
[1727251565002,13.2921,150.37,150.28,29.60212518]
[1727251565300,6.6507,150.36,150.28,20.0]
[1727251565506,0.42511646,150.35,150.28,20.0]
[1727251565795,0.42511646,150.35,150.27,6.95618319]
[1727251566013,6.6511,150.35,150.27,6.95618319]
[1727251566178,6.6508,150.36,150.27,6.95618319]
[1727251567603,6.6512,150.35,150.27,6.95618319]
[1727251567800,23.776884,150.36,150.27,6.95618319]
[1727251568007,6.6528,150.32,150.27,6.95618319]
[1727251568300,6.6528,150.32,150.25,20.0]
[1727251570698,6.85181646,150.31,150.24,0.2118356]
[1727251570938,6.6543,150.28,150.24,0.2118356]
[1727251571206,13.3048,150.27,150.24,0.2118356]
[1727251573906,7.08021646,150.26,150.24,0.2118356]
[1727251574598,6.6501,150.27,150.24,0.2118356]
[1727251575789,13.3048,150.27,150.24,0.2118356]
[1727251578980,6.6501,150.27,150.24,0.2118356]
[1727251579198,6.6538,150.29,150.24,0.2118356]
[1727251579490,20.0,150.3,150.24,0.2118356]
[1727251579491,6.6534,150.3,150.24,0.2118356]
[1727251581112,13.0768,150.31,150.24,0.2118356]
[1727251581290,6.6501,150.31,150.24,0.2118356]
[1727251582303,13.303,150.31,150.24,0.2118356]
[1727251582497,13.303,150.31,150.24,1.54267684]
[1727251583616,13.303,150.31,150.24,0.2118356]
[1727251585126,13.303,150.31,150.24,1.5426788]
[1727251585629,13.303,150.31,150.24,0.2118356]
[1727251586816,6.6539,150.29,150.24,0.2118356]
[1727251592421,23.776884,150.3,150.24,0.2118356]
[1727251592712,6.6543,150.28,150.24,0.2118356]
[1727251594152,6.6501,150.31,150.24,0.2118356]
[1727251594429,6.6551,150.26,150.24,0.2118356]
[1727251594629,0.42511646,150.25,150.24,0.2118356]
[1727251595606,6.6555,150.25,150.24,0.2118356]
[1727251596517,30.432384,150.25,150.24,0.2118356]
[1727251601418,6.6573,150.21,150.2,0.2466332]
[1727251602017,30.434184,150.21,150.2,0.2466332]
[1727251603509,6.6572,150.22,150.2,0.2466332]
[1727251604442,6.6572,150.22,150.2,0.1136576]
[1727251606825,6.6573,150.21,150.2,0.1136576]
[1727251607665,6.657,150.22,150.2,0.1136576]
[1727251609136,6.6573,150.21,150.2,0.1136576]
[1727251609445,30.434184,150.21,150.2,0.1136576]
[1727251631461,4.01570986,150.4,150.2,0.1136576]
[1727251631462,16.6359,150.28,150.2,0.1136576]
[1727251631758,7.67143715,150.29,150.2,0.1136576]
[1727251631759,1.15963715,150.29,150.2,16.4873576]
[1727251632135,6.6501,150.3,150.2,16.4873576]
[1727251632336,6.6561,150.24,150.2,16.4873576]
[1727251634457,36.6153,150.29,150.2,16.4873576]
[1727251634646,30.433684,150.23,150.2,16.4873576]
[1727251637171,6.6569,150.22,150.2,16.4873576]
[1727251640275,30.433384,150.23,150.2,16.4873576]
[1727251640465,6.656,150.24,150.2,16.4873576]
[1727251640648,6.6556,150.25,150.2,16.4873576]
[1727251642956,16.6353,150.29,150.2,16.4873576]
[1727251643166,6.6552,150.26,150.2,16.4873576]
[1727251643665,20.0,150.28,150.21,1.33132961]
[1727251643899,20.0,150.26,150.2,16.4873576]
[1727251644046,6.6551,150.26,150.2,16.4873576]
[1727251645051,7.08071646,150.25,150.2,16.4873576]
[1727251645347,6.6556,150.25,150.2,16.4873576]
[1727251646470,0.42511646,150.24,150.2,16.4873576]
[1727251646763,6.6556,150.25,150.2,16.4873576]
[1727251648370,6.6561,150.24,150.2,16.4873576]
[1727251657098,23.776884,150.27,150.2,16.4873576]
[1727251657255,6.6556,150.25,150.2,16.4873576]
[1727251658654,30.432084,150.26,150.2,16.4873576]
[1727251661173,30.432084,150.26,150.2,0.1136576]
[1727251661174,20.0,150.25,150.2,0.1136576]
[1727251661364,6.6565,150.23,150.2,0.1136576]
[1727251662362,23.776884,150.24,150.2,0.1136576]
[1727251662566,23.776884,150.25,150.21,16.1135]
[1727251665055,23.776884,150.25,150.21,16.2271576]
[1727251667671,0.42511646,150.24,150.21,16.2271576]
[1727251668063,6.6565,150.23,150.21,16.2271576]
[1727251674280,40.12185521,150.32,150.21,16.2271576]
[1727251674580,6.655,150.27,150.21,16.2271576]
[1727251674788,6.6551,150.26,150.21,16.2271576]
[1727251680572,6.6547,150.27,150.22,1.33127595]
[1727251681985,6.6543,150.28,150.23,6.6154]
[1727251682790,23.776884,150.31,150.23,6.6154]
[1727251682971,23.776884,150.31,150.24,15.4023]
[1727251683399,23.776884,150.29,150.24,15.4023]
[1727251683596,0.42511646,150.28,150.24,15.4023]
[1727251683783,6.6555,150.25,150.24,15.4023]
[1727251684101,0.42511646,150.28,150.24,15.4023]
[1727251684278,6.6551,150.26,150.24,15.4023]
[1727251685801,6.6555,150.25,150.24,15.4023]
[1727251686099,6.6561,150.24,150.21,0.1136576]
[1727251686596,7.08161646,150.23,150.21,0.1136576]
[1727251686905,6.6565,150.23,150.21,0.1136576]
[1727251687812,0.42511646,150.22,150.21,0.1136576]
[1727251691707,7.08201646,150.22,150.21,0.1136576]
[1727251692007,0.42511646,150.22,150.21,0.1136576]
[1727251692195,6.6565,150.23,150.21,0.1136576]
[1727251698813,0.42511646,150.22,150.21,0.1136576]
[1727251699010,7.08201646,150.22,150.21,0.1136576]
[1727251699216,30.433784,150.22,150.21,0.1136576]
[1727251699385,30.85890046,150.22,150.21,0.1136576]
[1727251700624,30.433784,150.22,150.21,0.1136576]
[1727251701906,6.6582,150.19,150.18,0.245159]
[1727251702096,30.435084,150.19,150.18,0.245159]
[1727251706408,30.435084,150.19,150.18,0.245159]
[1727251712094,6.6582,150.19,150.18,0.245159]
[1727251714798,6.6579,150.2,150.18,0.245159]
[1727251720122,7.08331646,150.19,150.18,0.245159]
[1727251720312,6.6582,150.19,150.18,0.245159]
[1727251721819,6.6578,150.2,150.18,0.245159]
[1727251722523,23.776884,150.23,150.18,0.245159]
[1727251722740,6.6573,150.21,150.18,0.245159]
[1727251723236,23.776884,150.23,150.18,0.245159]
[1727251723410,6.6579,150.2,150.18,0.245159]
[1727251726033,0.42511646,150.19,150.18,0.245159]
[1727251726620,30.86020046,150.19,150.18,0.245159]
[1727251727138,30.435084,150.19,150.18,0.245159]
[1727251730135,6.6582,150.19,150.18,0.245159]
[1727251732334,6.6578,150.2,150.18,0.245159]
[1727251734838,23.776884,150.23,150.18,0.245159]
[1727251734839,7.08331646,150.19,150.18,0.245159]
[1727251735139,30.435084,150.19,150.18,0.245159]
[1727251735617,6.6582,150.19,150.18,0.245159]
[1727251738121,20.0,150.23,150.18,0.245159]
[1727251738643,23.776884,150.22,150.18,0.245159]
[1727251739346,6.657,150.22,150.18,0.245159]
[1727251744027,6.657,150.22,150.18,0.245159]
[1727251747741,7.08261646,150.21,150.18,0.245159]
[1727251748039,0.42511646,150.2,150.18,0.245159]
[1727251749549,7.08311646,150.2,150.18,0.245159]
[1727251749843,30.86020046,150.19,150.18,0.245159]
[1727251750140,30.435084,150.19,150.18,0.245159]
[1727251755848,30.41224105,150.19,150.18,0.245159]
[1727251757438,43.776884,150.19,150.13,16.310459]
[1727251757631,6.66,150.15,150.13,16.310459]
[1727251757835,0.42511646,150.14,150.13,16.310459]
[1727251758029,6.6594,150.17,150.13,16.310459]
[1727251758465,6.6604,150.14,150.13,16.310459]
[1727251758765,6.66,150.15,150.13,16.310459]
[1727251759455,6.6596,150.16,150.13,16.310459]
[1727251760633,23.776884,150.19,150.13,16.310459]
[1727251760634,6.659,150.18,150.13,16.310459]
[1727251761055,6.6592,150.17,150.13,16.310459]
[1727251762064,6.6587,150.18,150.13,16.310459]
[1727251764348,23.776884,150.19,150.13,16.310459]
[1727251764664,30.435084,150.19,150.13,16.310459]
[1727251765429,30.435084,150.19,150.14,1.33191672]
[1727251767063,30.435084,150.19,150.13,16.310459]
[1727251768339,30.435084,150.19,150.14,1.33191817]
[1727251769462,30.435084,150.19,150.13,16.310459]
[1727251770457,6.659,150.18,150.13,16.310459]
[1727251772443,23.776884,150.19,150.13,16.310459]
[1727251772645,6.6596,150.16,150.13,16.310459]
[1727251776355,23.776884,150.17,150.13,17.64260319]
[1727251777348,23.776884,150.17,150.13,16.310459]
[1727251777575,6.6582,150.19,150.14,1.33196979]
[1727251779672,6.6582,150.19,150.13,16.310459]
[1727251780065,6.6582,150.19,150.14,1.3319247]
[1727251780565,6.6582,150.19,150.13,16.310459]
[1727251783660,23.776884,150.18,150.13,16.310459]
[1727251786879,30.435584,150.18,150.13,16.310459]
[1727251788155,30.435584,150.18,150.14,1.33193314]
[1727251790469,23.776884,150.18,150.14,1.33193314]
[1727251793155,6.6579,150.2,150.15,6.015]
[1727251793359,23.776884,150.19,150.15,6.015]
[1727251800888,6.6561,150.24,150.17,15.5092]
[1727251801079,21.11067952,150.3,150.18,7.34642849]
[1727251801080,6.6559,150.25,150.18,7.34642849]
[1727251801462,6.6559,150.25,150.18,6.015]
[1727251801766,6.657,150.22,150.18,6.015]
[1727251801959,6.6573,150.21,150.18,6.015]
[1727251802165,23.776884,150.25,150.18,6.015]
[1727251802980,6.6574,150.21,150.18,6.015]
[1727251803191,23.776884,150.2,150.18,6.015]
[1727251806986,23.776884,150.21,150.18,6.015]
[1727251807662,6.657,150.22,150.18,6.015]
[1727251808087,6.6566,150.23,150.18,7.34664613]
[1727251808388,6.6566,150.23,150.18,6.015]
[1727251809479,6.6573,150.21,150.18,6.015]
[1727251809873,0.42511646,150.2,150.18,6.015]
[1727251810461,6.6573,150.21,150.18,6.015]
[1727251810674,23.776884,150.2,150.18,6.015]
[1727251818479,16.6384,150.26,150.18,6.015]
[1727251818688,23.776884,150.22,150.18,6.015]
[1727251818888,0.42511646,150.21,150.18,6.015]
[1727251819277,23.776884,150.22,150.18,6.015]
[1727251820396,23.776884,150.2,150.18,6.015]
[1727251824177,24.20200046,150.2,150.18,6.015]
[1727251824384,24.20200046,150.2,150.17,15.5092]
[1727251824897,30.85980046,150.2,150.17,15.5092]
[1727251825377,0.42511646,150.19,150.17,15.5092]
[1727251825578,30.434684,150.2,150.17,15.5092]
[1727251828877,23.776884,150.2,150.17,15.5092]
[1727251830307,23.776884,150.21,150.17,15.5092]
[1727251832980,30.434284,150.21,150.17,15.5092]
[1727251833588,23.776884,150.18,150.14,6.6347]
[1727251833791,0.42511646,150.17,150.14,6.6347]
[1727251833991,23.776884,150.18,150.14,6.6347]
[1727251834495,6.6582,150.19,150.14,6.6347]
[1727251834496,6.6574,150.21,150.14,6.6347]
[1727251834708,23.776884,150.2,150.14,6.6347]
[1727251835704,30.434984,150.2,150.14,6.6347]
[1727251836886,23.776884,150.2,150.15,1.33193261]
[1727251838109,23.776884,150.2,150.14,6.6347]
[1727251838400,23.776884,150.2,150.14,7.96653952]
[1727251838898,20.776884,150.21,150.14,7.96653952]
[1727251839713,16.6373,150.27,150.14,7.96653952]
[1727251839883,6.6565,150.23,150.16,16.1076]
[1727251843003,6.6543,150.28,150.22,1.33118038]
[1727251843393,6.6551,150.26,150.2,22.261]
[1727251844189,23.776884,150.25,150.2,22.261]
[1727251858097,0.42511646,150.24,150.2,22.261]
[1727251858598,6.6565,150.23,150.2,22.261]
[1727251858999,0.42511646,150.22,150.2,22.261]
[1727251859212,6.6565,150.23,150.2,22.261]
[1727251859609,23.776884,150.25,150.2,22.261]
[1727251859904,6.6561,150.24,150.2,22.261]
[1727251860297,23.776884,150.25,150.2,22.261]
[1727251860504,30.432584,150.25,150.2,22.261]
[1727251860693,6.6545,150.28,150.21,1.33145812]
[1727251860894,0.245159,150.29,150.23,16.2136]
[1727251861104,0.245159,150.29,150.25,6.5148]
[1727251862696,24.022043,150.29,150.25,6.5148]
[1727251863823,30.675843,150.29,150.25,6.5148]
[1727251864325,24.20200046,150.28,150.25,6.5148]
[1727251864531,0.245159,150.29,150.25,6.5148]
[1727251864914,0.245159,150.29,150.26,1.33090605]
[1727251865299,0.245159,150.29,150.25,6.5148]
[1727251869010,0.67027546,150.29,150.25,6.5148]
[1727251869228,23.776884,150.28,150.25,6.5148]
[1727251869530,6.6547,150.27,150.25,6.5148]
[1727251869833,23.776884,150.26,150.25,6.5148]
[1727251870003,30.431984,150.26,150.25,6.5148]
[1727251871510,30.431984,150.26,150.23,16.2136]
[1727251872431,23.776884,150.26,150.23,16.2136]
[1727251876711,24.20200046,150.26,150.23,16.2136]
[1727251877131,23.776884,150.26,150.23,16.2136]
[1727251877931,30.432084,150.26,150.23,16.2136]
[1727251882544,6.656,150.24,150.21,6.5609]
[1727251884466,23.776884,150.24,150.21,6.5609]
[1727251886941,23.776884,150.24,150.19,22.76586191]
[1727251887426,6.6565,150.23,150.19,22.76586191]
[1727251887754,7.08161646,150.23,150.19,22.76586191]
[1727251888323,23.776884,150.22,150.19,22.76586191]
[1727251888530,0.42511646,150.21,150.19,22.76586191]
[1727251889022,0.42511646,150.21,150.17,6.2699]
[1727251889023,23.776884,150.22,150.17,6.2699]
[1727251890435,23.776884,150.2,150.17,6.2699]
[1727251897445,16.6385,150.26,150.17,6.2699]
[1727251897627,6.6561,150.24,150.18,1.33171812]
[1727251898648,6.6561,150.24,150.17,6.2699]
[1727251898827,23.776884,150.23,150.17,6.2699]
[1727251899943,23.776884,150.23,150.18,1.33156974]
[1727251900121,6.6566,150.23,150.17,6.2699]
[1727251900317,23.776884,150.22,150.17,6.2699]
[1727251901042,23.776884,150.23,150.17,6.2699]
[1727251901256,23.776884,150.24,150.17,6.2699]
[1727251901438,23.776884,150.22,150.17,6.2699]
[1727251905240,23.776884,150.22,150.18,1.33163796]
[1727251907639,23.776884,150.23,150.18,1.33163796]
[1727251909375,16.880059,150.29,150.19,16.5318]
[1727251909572,0.245159,150.29,150.2,1.33136189]
[1727251909791,6.6543,150.28,150.2,1.33136189]
[1727251910071,6.6548,150.27,150.19,16.5318]
[1727251911038,23.776884,150.26,150.19,16.5318]
[1727251916557,30.431984,150.26,150.19,16.5318]
[1727251917460,0.42511646,150.25,150.19,16.5318]
[1727251919060,23.776884,150.26,150.19,16.5318]
[1727251919386,23.776884,150.23,150.19,16.5318]
[1727251920784,6.6558,150.25,150.19,16.5318]
[1727251920962,23.776884,150.24,150.19,16.5318]
[1727251927269,6.6552,150.26,150.19,16.5318]
[1727251927468,6.6552,150.26,150.2,1.33129663]
[1727251927670,6.6548,150.27,150.2,1.33129663]
[1727251927878,6.6548,150.27,150.21,6.6014]
[1727251928792,23.776884,150.26,150.21,6.6014]
[1727251929277,0.42511646,150.25,150.21,6.6014]
[1727251929482,6.656,150.24,150.21,6.6014]
[1727251929684,0.42511646,150.23,150.21,6.6014]
[1727251930288,23.776884,150.24,150.21,6.6014]
[1727251932077,16.880259,150.29,150.21,6.6014]
[1727251932279,6.6548,150.27,150.21,6.6014]
[1727251932479,23.776884,150.26,150.21,6.6014]
[1727251932880,6.6548,150.27,150.21,6.6014]
[1727251934179,23.776884,150.26,150.21,6.6014]
[1727251937739,23.776884,150.26,150.22,1.33123817]
[1727251938389,23.776884,150.26,150.21,6.6014]
[1727251939814,30.85720046,150.26,150.21,6.6014]
[1727251940006,0.42511646,150.25,150.21,6.6014]
[1727251940783,6.6556,150.25,150.21,6.6014]
[1727251950116,30.431984,150.26,150.22,1.33134728]
[1727251950291,30.431984,150.26,150.21,6.6014]
[1727251950487,23.776884,150.26,150.21,6.6014]
[1727251950803,23.776884,150.26,150.22,1.33121846]